lending/lending_fUSD_20250102
["ID","MTS","AMOUNT","RATE_DAILY","PERIOD"]
[347425123,1735783832395,-496.2,0.0001037,2]
[347425124,1735783832405,-167.68,0.00010382,2]
[347425125,1735783832414,-497.17,0.00010402,2]
[347425126,1735783832423,-201.0,0.00010424,2]
[347425127,1735783832432,-201.01,0.00010424,2]
[347425128,1735783832442,-172.14,0.00010445,2]
[347425129,1735783832451,-506.78,0.0001045,2]
[347425130,1735783832461,-857.42,0.00010474,2]
[347425131,1735783832470,-3891.0,0.0001074,2]
[347425132,1735783832479,-6741.11434804,0.0001074,2]
[347425134,1735783832491,-686.42423863,0.0001074,2]
[347425136,1735783832502,-670.37804133,0.0001074,2]
[347425138,1735783832546,-388.59141856,0.0001074,2]
[347425139,1735783832558,-1159.38095344,0.0001074,2]
[347425140,1735783832567,-150.685,0.0001074,2]
[347425141,1735783832576,-1175.718,0.0001074,2]
[347425142,1735783832586,-198.96177027,0.00010749,2]
[347425143,1735783832596,-1480.14876864,0.000108,2]
[347425144,1735783832605,-1213.425295,0.000108,2]
[347425145,1735783832615,-974597.53040334,0.000108,2]
[347425149,1735783837966,-619.02889919,0.000108,2]
[347425152,1735783837978,-424169.77550347,0.000108,2]
[347425154,1735783837988,-506.5,0.00010825,2]
[347425155,1735783837998,-1003.29298748,0.00010834,2]
[347425156,1735783838007,-282746.19834879,0.00010835,2]
[347425157,1735783838197,-5110.70886892,0.00010835,2]
[347425158,1735783838209,-5018.86104,0.00010835,2]
[347425159,1735783838220,-5462.24845647,0.00010835,2]
[347425160,1735783838232,-8940.77294004,0.00010835,2]
[347425161,1735783838243,-2895.42788783,0.00010835,2]
[347425162,1735783838362,-384.43948113,0.00010835,2]
[347425163,1735783838373,-90814.59913666,0.00010835,2]
[347425164,1735783838383,-182.81,0.00010849,2]
[347425165,1735783838393,-182.81,0.00010849,2]
[347425166,1735783838402,-182.81,0.00010849,2]
[347425167,1735783838412,-7725.79965643,0.0001089,2]
[347425168,1735783838423,-888.422,0.000109,2]
[347425169,1735783838435,-2500.0,0.000109,2]
[347425170,1735783838446,-2500.0,0.000109,2]
[347425171,1735783838456,-1003.0,0.000109,2]
[347425172,1735783838466,-6548.10467198,0.00010958,2]
[347425173,1735783838475,-29075.54582355,0.00010968,2]
[347425174,1735783838485,-29075.54582355,0.00010971,2]
[347425175,1735783838494,-29075.54582355,0.00010973,2]
[347425176,1735783838503,-503.22668343,0.00010973,2]
[347425177,1735783838514,-500.0,0.00010973,2]
[347425178,1735783838524,-29075.54582355,0.00010976,2]
[347425179,1735783838535,-200.0,0.00010976,2]
[347425180,1735783838545,-1590.034,0.00010976,2]
[347425181,1735783838555,-181.16533832,0.00010976,2]
[347425182,1735783838566,-7679.3990774,0.00010986,2]
[347425183,1735783838577,-292.88789444,0.00010986,2]
[347425184,1735783838588,-1262.42531944,0.00010986,2]
[347425185,1735783838599,-2009.26186409,0.00010986,2]
[347425222,1735783840207,-1277.905,0.00010986,2]
[347425223,1735783840219,-273.14105446,0.00010986,2]
[347425224,1735783840232,-16159.40985167,0.00010986,2]
[347425237,1735783843155,-121.11576205,0.00010986,2]
[347425239,1735783843165,-4919.94219481,0.00010988,2]
[347425241,1735783843176,-919.97299999,0.00010988,2]
[347425242,1735783843188,-23235.63062875,0.00010988,2]
[347425243,1735783843198,-631.45138958,0.0001099,2]
[347425244,1735783843368,-307.2896,0.0001099,2]
[347425246,1735783846406,-251.10073731,0.00010825,2]
[347425247,1735783846483,-241.88926269,0.00010825,2]
[347425248,1735783846492,-1665.2974973,0.0001099,2]
[347425249,1735783846503,-432.00902886,0.0001099,2]
[347425250,1735783939079,40000.0,0.00023,120]
[347425251,1735783953859,2000.0,0.00022877,120]
[347425252,1735783954094,2000.0,0.0002274,120]
[347425253,1735783954772,807.42,8.33e-05,2]
[347425254,1735784103776,170.65912436,0.00023,120]
[347425255,1735784103908,2376.27845617,0.00023,120]
[347425256,1735784117451,157.010211,0.00023,120]
[347425257,1735784118020,157.010211,0.00023,120]
[347425258,1735784118460,157.010211,0.00023,120]
[347425259,1735784118867,157.010211,0.00023,120]
[347425260,1735784119291,157.010211,0.00023,120]
[347425261,1735784128126,151.010211,0.00023,120]
[347425262,1735784203817,3334.0,0.00023,120]
[347425263,1735784208475,10000.0,0.00023,120]
[347425264,1735784682149,366.0,0.00023,120]
[347425265,1735784719789,194.91,9.165e-05,2]
[347425292,1735785032415,-957.14864023,9.901e-05,2]
[347425293,1735785032427,-42.85135977,9.901e-05,2]
[347425294,1735785032436,-659.16,9.926e-05,2]
[347425295,1735785032445,-227.84,9.935e-05,2]
[347425296,1735785032454,-250.0,0.00010006,2]
[347425297,1735785032463,-164.78,0.0001003,2]
[347425298,1735785032472,-8026.29283557,0.00010047,2]
[347425299,1735785032548,-1461.29771411,0.00010047,2]
[347425300,1735785032559,-350.8690286,0.00010047,2]
[347425301,1735785032570,-696.11325729,0.00010047,2]
[347425302,1735785032581,-429.21021427,0.00010047,2]
[347425303,1735785032593,-12936.21695016,0.00010047,2]
[347425304,1735785032604,-154.3,0.00010137,2]
[347425305,1735785032614,-500.0,0.00010329,2]
[347425306,1735785032624,-506.96,0.00010394,2]
[347425307,1735785032634,-508.29,0.00010429,2]
[347425308,1735785032643,-501.28,0.00010429,2]
[347425309,1735785032653,-508.77,0.00010429,2]
[347425310,1735785032662,-506.92,0.00010429,2]
[347425311,1735785032671,-500.57,0.00010429,2]
[347425312,1735785032681,-504.54,0.00010429,2]
[347425313,1735785032690,-508.01,0.00010429,2]
[347425314,1735785032699,-505.91,0.00010429,2]
[347425315,1735785032708,-507.26,0.00010429,2]
[347425316,1735785032717,-509.27,0.00010429,2]
[347425317,1735785032726,-492.27,0.00010429,2]
[347425318,1735785032736,-485.427,0.0001045,2]
[347425319,1735785032745,-807.42,0.00010594,2]
[347425320,1735785032754,-200.9625,0.00010735,2]
[347425321,1735785032763,-1000.0,0.00010735,2]
[347425322,1735785032772,-184.791103,0.00010753,2]
[347425323,1735785032785,-239.55122691,0.00010835,2]
[347425324,1735785032794,-500.89616561,0.00010873,2]
[347425325,1735785032803,-35032.4309,0.000109,2]
[347425326,1735785032812,-50457.7389,0.000109,2]
[347425327,1735785032822,-509.29,0.000109,2]
[347425328,1735785032832,-49587.39,0.000109,2]
[347425329,1735785032841,-337.37081607,0.000109,2]
[347425330,1735785032850,-1115.8561949,0.000109,2]
[347425331,1735785032859,-1115.8561949,0.000109,2]
[347425333,1735785032869,-5000.0,0.000109,2]
[347425335,1735785032878,-23525.64517056,0.000109,2]
[347425337,1735785032887,-430.28,0.000109,2]
[347425339,1735785032896,-1410.45662152,0.000109,2]
[347425341,1735785032905,-151.51,0.00010929,2]
[347425343,1735785032915,-151.87,0.00010929,2]
[347425344,1735785032924,-33852.06153594,0.00010971,2]
[347425345,1735785032933,-504.08103927,0.00010973,2]
[347425346,1735785032941,-500.0,0.00010973,2]
[347425347,1735785032951,-33852.06153594,0.00010973,2]
[347425348,1735785032960,-1682.153,0.00010977,2]
[347425349,1735785032969,-33852.06153594,0.00010979,2]
[347425350,1735785032978,-33852.06153594,0.00010985,2]
[347425351,1735785032987,-504.93,0.00010986,2]
[347425352,1735785032997,-400.0,0.00010986,2]
[347425353,1735785033006,-1797.18367252,0.0001099,2]
[347425356,1735785038553,-15108.11048406,0.0001099,2]
[347425358,1735785038563,-2005.99,0.0001099,2]
[347425359,1735785038574,-522.93167885,0.00010992,2]
[347425360,1735785038584,-33852.06153594,0.00010992,2]
[347425361,1735785038595,-1947.106,0.00010994,2]
[347425362,1735785038606,-1260.349,0.00010994,2]
[347425363,1735785038616,-3781.544,0.00010994,2]
[347425364,1735785038627,-821.0,0.00010994,2]
[347425365,1735785038640,-921.734,0.00010994,2]
[347425366,1735785038651,-553.502,0.00010994,2]
[347425367,1735785038661,-3729.718,0.00010994,2]
[347425369,1735785038672,-1272.189,0.00010994,2]
[347425370,1735785038681,-2018.347,0.00010994,2]
[347425371,1735785038692,-3891.0,0.00010994,2]
[347425372,1735785038702,-150.0,0.00010994,2]
[347425373,1735785038712,-151.0,0.00010994,2]
[347425374,1735785038722,-31166.50118605,0.00010995,2]
[347425375,1735785038735,-467.52,0.00010995,2]
[347425383,1735785040312,-642.97607776,0.0001099,2]
[347425384,1735785040322,-1626.1050394,0.0001099,2]
[347425385,1735785040473,-730.91888284,0.0001099,2]
[347425386,1735785040483,-2218.04034989,0.00010995,2]
[347425387,1735785040492,-429.5674291,0.00010999,2]
[347425388,1735785040502,-780.04,0.00010999,2]
[347425389,1735785040511,-517.23305877,0.00010999,2]
[347425390,1735785040520,-273.70675075,0.00010999,2]
[347425391,1735785040529,-579.0,0.00011,2]
[347425392,1735785040538,-1097.15637751,0.00011,2]
[347425393,1735785040547,-2652.52035704,0.00011,2]
[347425394,1735785040559,-5389.03984122,0.00011,2]
[347425395,1735785040620,-1937.60645246,0.00011,2]
[347425396,1735785040632,-783.44824385,0.00011,2]
[347425397,1735785040646,-4740.1001,0.00011,2]
[347425398,1735785040659,-1383.97043471,0.00011,2]
[347425407,1735785043342,-500.0,0.00010973,2]
[347425408,1735785043351,-1172.0,0.00010994,2]
[347425409,1735785043360,-17361.6,0.00011,2]
[347425410,1735785043372,-16512.64998526,0.00011,2]
[347425413,1735785043652,-476.67811274,0.00011,2]
[347425414,1735785043663,-939.4450235,0.00011,2]
[347425415,1735785043674,-547.85,0.00011,2]
[347425416,1735785043685,-562.54237945,0.00011,2]
[347425417,1735785043696,-9311.04221422,0.00011,2]
[347425418,1735785046422,-418.66907585,0.00011,2]
[347425419,1735785046434,-270.775,0.00011,2]
[347425420,1735785046504,-1664.87275,0.00011,2]
[347425421,1735785046632,-2089.9728,0.00011,2]
[347425422,1735785046643,-2236.96263247,0.00011,2]
[347425423,1735785166066,10019.94,0.00023,120]
[347425425,1735785231666,834.88,8.219e-05,2]
[347425426,1735785716723,5000.0,0.0001311,10]
[347425441,1735786110901,827.48,8.219e-05,2]
[347425450,1735786232438,-250.0,9.689e-05,2]
[347425451,1735786232447,-135.90652593,9.732e-05,2]
[347425458,1735786232649,-114.09347407,9.732e-05,2]
[347425459,1735786232659,-185.89652593,9.769e-05,2]
[347425460,1735786232670,-814.10347407,9.769e-05,2]
[347425461,1735786232679,-341.3,9.788e-05,2]
[347425462,1735786232688,-365.47,9.869e-05,2]
[347425463,1735786232697,-303.9,9.874e-05,2]
[347425464,1735786232706,-250.0,9.895e-05,2]
[347425465,1735786232715,-300.0,9.955e-05,2]
[347425466,1735786232723,-7438.65,9.956e-05,2]
[347425467,1735786232731,-164.69,0.00010011,2]
[347425468,1735786232741,-150.0,0.0001011,2]
[347425469,1735786232750,-158.2,0.00010137,2]
[347425470,1735786232760,-170.37,0.00010138,2]
[347425471,1735786232769,-508.54,0.00010373,2]
[347425473,1735786232778,-483.881,0.0001045,2]
[347425474,1735786232787,-492.88,0.00010454,2]
[347425475,1735786232799,-503.07,0.00010458,2]
[347425476,1735786232808,-498.73,0.00010458,2]
[347425477,1735786232818,-827.48,0.00010462,2]
[347425478,1735786232827,-496.43,0.00010465,2]
[347425479,1735786232836,-492.89,0.0001048,2]
[347425481,1735786232845,-184.32,0.00010575,2]
[347425483,1735786232853,-509.04,0.00010675,2]
[347425484,1735786232863,-504.34,0.00010742,2]
[347425485,1735786232872,-497.95,0.00010845,2]
[347425486,1735786232881,-202.9852,0.000109,2]
[347425487,1735786232889,-5000.0,0.000109,2]
[347425489,1735786232898,-420.0,0.00010951,2]
[347425491,1735786232907,-68520.6562259,0.00010971,2]
[347425493,1735786232918,-117326.75887721,0.00010971,2]
[347425494,1735786232927,-500.0,0.00010973,2]
[347425495,1735786232936,-4267.94137887,0.00010977,2]
[347425496,1735786232945,-4267.94137887,0.00010978,2]
[347425497,1735786232954,-83589.8470978,0.00010981,2]
[347425498,1735786232965,-449.32685517,0.00010981,2]
[347425499,1735786232976,-299.99,0.00010981,2]
[347425500,1735786232987,-9231.55997168,0.00010981,2]
[347425501,1735786232998,-385.76146941,0.00010981,2]
[347425502,1735786233009,-1130.76839086,0.00010981,2]
[347425503,1735786233020,-2059.90069911,0.00010981,2]
[347425504,1735786235343,-1553.5356151,0.00010981,2]
[347425505,1735786235355,-573.86007483,0.00010981,2]
[347425527,1735786238515,-592.0067003,0.00010981,2]
[347425528,1735786238527,-496.99999,0.00010981,2]
[347425529,1735786238538,-1023.74679934,0.00010981,2]
[347425530,1735786238551,-44464.33231153,0.00010981,2]
[347425531,1735786238705,-39995.77912798,0.00010981,2]
[347425532,1735786238715,-185847.41510311,0.00010982,2]
[347425533,1735786238724,-400.0,0.00010986,2]
[347425534,1735786238734,-101068.58581237,0.00010987,2]
[347425535,1735786238745,-84778.82929074,0.00010987,2]
[347425536,1735786238755,-160821.78349209,0.00010989,2]
[347425539,1735786240390,-207.92573931,9.788e-05,2]
[347425541,1735786240399,-25025.63161102,0.00010989,2]
[347425542,1735786240411,-1000.0,0.00010991,2]
[347425543,1735786240420,-4267.94137887,0.00010992,2]
[347425544,1735786240429,-4267.94137887,0.00010993,2]
[347425545,1735786240439,-4267.94137887,0.00010994,2]
[347425546,1735786240449,-1744.597,0.00010995,2]
[347425547,1735786240460,-107335.38196865,0.00010995,2]
[347425548,1735786240471,-2768.10488298,0.00010995,2]
[347425549,1735786240623,-3000.84839263,0.00010995,2]
[347425550,1735786240635,-12100.4134,0.00010995,2]
[347425551,1735786240808,-10174.97,0.00010995,2]
[347425553,1735786240819,-2231.89511702,0.00010995,2]
[347425554,1735786240831,-13201.92627931,0.00010995,2]
[347425555,1735786240842,-500.0,0.00010995,2]
[347425573,1735786243921,-501.91363577,0.00010995,2]
[347425574,1735786243932,-1947.01661006,0.00010995,2]
[347425575,1735786243943,-32084.94481669,0.00010995,2]
[347425576,1735786243953,-509.67,0.00010995,2]
[347425577,1735786243962,-211.527,0.00010995,2]
[347425578,1735786243971,-533.85443853,0.00010996,2]
[347425579,1735786243983,-1479.14556147,0.00010996,2]
[347425580,1735786243992,-160.85435556,0.00010996,2]
[347425581,1735786244003,-1105.14564444,0.00010996,2]
[347425582,1735786244012,-150.502,0.00010996,2]
[347425583,1735786244022,-566.0,0.00010996,2]
[347425584,1735786244031,-253.21172797,0.00010996,2]
[347425585,1735786244042,-380.78827203,0.00010996,2]
[347425586,1735786244051,-52.60179047,0.00010996,2]
[347425587,1735786244134,-451.88977681,0.00010996,2]
[347425601,1735786246461,-1354.50843272,0.00010996,2]
[347425603,1735786246471,-919.0,0.00010996,2]
[347425604,1735786246480,-1257.0,0.00010996,2]
[347425606,1735786246490,-819.0,0.00010996,2]
[347425607,1735786246499,-492.28883896,0.00010996,2]
[347425608,1735786246511,-2024.8765447,0.00010996,2]
[347425609,1735786246523,-1256.83461634,0.00010996,2]
[347425610,1735786246532,-536.0,0.00010996,2]
[347425611,1735786246542,-3721.0,0.00010996,2]
[347425612,1735786246553,-150.0,0.00010996,2]
[347425613,1735786246562,-4865.78649669,0.00010996,2]
[347425614,1735786246663,-595.20511308,0.00010996,2]
[347425615,1735786246675,-633.92011725,0.00010996,2]
[347425616,1735786246686,-3516.08827298,0.00010996,2]
[347425617,1735786246695,-350.86567827,0.00010996,2]
[347425618,1735786246855,-19.11032173,0.00010996,2]
[347425619,1735786246864,-150.0,0.00010996,2]
[347425620,1735786246873,-111.88967827,0.00010996,2]
[347425621,1735786246885,-993.23132173,0.00010996,2]
[347425622,1735786246894,-180.073,0.00010996,2]
[347425623,1735786246903,-150.0,0.00010996,2]
[347425624,1735786246912,-4267.94137887,0.00010997,2]
[347425625,1735786246922,-214.7837146,0.00010999,2]
[347425626,1735786246931,-747.54,0.00010999,2]
[347425627,1735786246942,-579.29923587,0.00010999,2]
[347425628,1735786246951,-504.47,0.00011,2]
[347425629,1735786246960,-523.0,0.00011,2]
[347425630,1735786246970,-548.57818875,0.00011,2]
[347425631,1735786246979,-24756.30881382,0.00011,2]
[347425632,1735786246991,-622.15636844,0.00011,2]
[347425633,1735786247003,-3406.57868877,0.00011,2]
[347425634,1735786247016,-318.30043986,0.00011,2]
[347425635,1735786247028,-707.22310457,0.00011,2]
[347425636,1735786832154,269.76909883,9.563e-05,2]
[347425637,1735787035558,500.0,0.00023,120]
[347425638,1735787044471,500.0,0.00023,120]
[347425639,1735787048275,530.23090117,8.219e-05,2]
[347425640,1735787048297,248.83909883,8.219e-05,2]
[347425641,1735787055458,500.0,0.00023,120]
[347425642,1735787062506,500.0,0.00023,120]
[347425643,1735787073094,500.0,0.00023,120]
[347425644,1735787083895,300.0,0.00023,120]
[347425646,1735787348571,-22316.78764908,0.00011031,7]
[347425647,1735787423360,150.010211,0.00023,120]
[347425648,1735787424435,150.010211,0.00023,120]
[347425649,1735787425099,150.010211,0.00023,120]
[347425650,1735787425678,150.010211,0.00023,120]
[347425651,1735787427221,150.010211,0.00023,120]
[347425652,1735787427760,150.010211,0.00023,120]
[347425653,1735787428945,150.010211,0.00023,120]
[347425654,1735787431764,-250.0,9.72e-05,2]
[347425655,1735787431773,-1068.19,9.797e-05,2]
[347425656,1735787431783,-250.0,9.813e-05,2]
[347425657,1735787431793,-1820.97754379,9.831e-05,2]
[347425658,1735787431804,-594.86245621,9.831e-05,2]
[347425659,1735787431814,-250.0,9.896e-05,2]
[347425660,1735787431823,-337.84846092,9.938e-05,2]
[347425661,1735787431835,-257.196,9.938e-05,2]
[347425662,1735787431846,-377.33902338,9.938e-05,2]
[347425663,1735787431986,-27.6165157,9.938e-05,2]
[347425664,1735787431996,-401.09,9.962e-05,2]
[347425665,1735787432006,-854.9,0.00010012,2]
[347425666,1735787432015,-421.97,0.00010137,2]
[347425667,1735787432025,-154.3,0.00010137,2]
[347425668,1735787432034,-168.56,0.00010248,2]
[347425669,1735787432043,-178.0,0.00010261,2]
[347425670,1735787432052,-495.85,0.00010365,2]
[347425671,1735787432062,-482.358,0.0001045,2]
[347425672,1735787432072,-507.11,0.00010459,2]
[347425673,1735787432081,-779.07,0.00010464,2]
[347425674,1735787432091,-492.2,0.00010468,2]
[347425675,1735787432100,-164.1,0.0001052,2]
[347425676,1735787432109,-150.32,0.00010637,2]
[347425677,1735787432118,-152.63,0.000107,2]
[347425678,1735787432128,-497.92,0.00010766,2]
[347425679,1735787432137,-1177.61771566,0.000108,2]
[347425680,1735787432146,-763.74,0.00010849,2]
[347425681,1735787432155,-262.31,0.00010849,2]
[347425682,1735787432165,-150.0,0.00010854,2]
[347425684,1735787432174,-566.0,0.00010854,2]
[347425686,1735787432183,-634.0,0.00010854,2]
[347425688,1735787432192,-677.807,0.00010854,2]
[347425690,1735787432201,-1180.658,0.00010854,2]
[347425692,1735787432211,-3774.0,0.00010854,2]
[347425693,1735787432220,-819.0,0.00010854,2]
[347425694,1735787432229,-3721.0,0.00010854,2]
[347425695,1735787432238,-536.0,0.00010854,2]
[347425696,1735787432248,-3891.0,0.00010854,2]
[347425697,1735787432257,-9611.0,0.00010854,2]
[347425698,1735787432267,-150.0,0.00010854,2]
[347425699,1735787432276,-502.21,0.00010878,2]
[347425700,1735787432285,-7697.9292,0.00010892,2]
[347425701,1735787432295,-265.3819,0.00010892,2]
[347425702,1735787432305,-1018.83948576,0.000109,2]
[347425703,1735787432317,-844.55371424,0.000109,2]
[347425704,1735787432327,-46.45175444,0.000109,2]
[347425705,1735787432338,-453.54824556,0.000109,2]
[347425706,1735787432348,-292.17225989,0.000109,2]
[347425707,1735787432359,-822.9,0.000109,2]
[347425708,1735787432371,-344.7799999,0.000109,2]
[347425709,1735787432383,-1204.50000005,0.000109,2]
[347425710,1735787432394,-9356.14284016,0.000109,2]
[347425711,1735787432403,-1854.4782,0.000109,2]
[347425712,1735787432413,-166.32870509,0.000109,2]
[347425713,1735787432423,-126297.81318736,0.00010969,2]
[347425714,1735787432433,-2505.167699,0.00010971,2]
[347425715,1735787432443,-464.2802,0.00010973,2]
[347425716,1735787432453,-500.0,0.00010973,2]
[347425717,1735787432462,-2505.167699,0.00010974,2]
[347425718,1735787432472,-72934.0930628,0.00010978,2]
[347425719,1735787432484,-53363.72012456,0.00010978,2]
[347425720,1735787432493,-2505.167699,0.00010981,2]
[347425721,1735787432503,-211.52731383,0.00010982,2]
[347425722,1735787432513,-1771.397,0.00010982,2]
[347425723,1735787432522,-126297.81318736,0.00010983,2]
[347425724,1735787432532,-60001.67832203,0.00010985,2]
[347425725,1735787432543,-629.97527871,0.00010985,2]
[347425726,1735787432668,-531.65387139,0.00010985,2]
[347425727,1735787432679,-1706.8058045,0.00010985,2]
[347425728,1735787432691,-2345.7000092,0.00010985,2]
[347425729,1735787433426,150.010211,0.00023,120]
[347425735,1735787437723,-2151.0577244,0.00010985,2]
[347425736,1735787437734,-1605.83596681,0.00010985,2]
[347425737,1735787437745,-2249.66425499,0.00010985,2]
[347425738,1735787437756,-3951.00000001,0.00010985,2]
[347425739,1735787437771,-769.22313,0.00010985,2]
[347425740,1735787437781,-30059.56939588,0.00010985,2]
[347425741,1735787437793,-986.58501,0.00010985,2]
[347425742,1735787437931,-19309.06441944,0.00010985,2]
[347425743,1735787437940,-400.0,0.00010986,2]
[347425744,1735787437949,-126297.81318736,0.00010988,2]
[347425745,1735787437958,-2083.75730406,0.00010991,2]
[347425746,1735787437968,-177247.62317366,0.00010992,2]
[347425747,1735787437979,-500.0,0.00010992,2]
[347425748,1735787437990,-948.55750803,0.00010992,2]
[347425749,1735787439785,-224494.84701296,0.00010992,2]
[347425750,1735787439795,-2505.167699,0.00010994,2]
[347425751,1735787439806,-2505.167699,0.00010995,2]
[347425752,1735787439816,-2505.167699,0.00010995,2]
[347425753,1735787439825,-495.94,0.00010996,2]
[347425754,1735787439835,-151.357,0.00010996,2]
[347425755,1735787439845,-1266.0,0.00010996,2]
[347425756,1735787439855,-2013.0,0.00010996,2]
[347425757,1735787439864,-126297.81318736,0.00010996,2]
[347425758,1735787439873,-214.7837146,0.00010999,2]
[347425759,1735787439883,-716.39,0.00010999,2]
[347425760,1735787439892,-14490.01900778,0.00011,2]
[347425761,1735787439904,-1005.59209665,0.00011,2]
[347425762,1735787439915,-311.77213188,0.00011,2]
[347425763,1735787440017,-4476.39938864,0.00011,2]
[347425776,1735787442577,151.010211,0.00023,120]
[347425779,1735787443119,-587.14331679,0.00010446,2]
[347425781,1735787443222,-441.13960504,0.00010446,2]
[347425782,1735787443231,-2233.55110362,0.00011,2]
[347425783,1735787443246,-2382.70340589,0.00011,2]
[347425784,1735787443257,-8061.9412682,0.00011,2]
[347425786,1735787443268,-681.83583395,0.00011,2]
[347425788,1735787443279,-7972.0,0.00011,2]
[347425794,1735787445708,-3456.25973357,0.00011,2]
[347425795,1735787445720,-934.40077117,0.00011,2]
[347425796,1735787445732,-352.57934082,0.00011,2]
[347425797,1735787445914,-7123.87122019,0.00011,2]
[347425798,1735787445925,-3166.2292104,0.00011,2]
[347425803,1735788038807,-20085.10888417,0.00011031,7]
[347425804,1735788038923,-29914.89111583,0.00012499,7]
[347425805,1735788098436,-52209.03121934,0.00012499,7]
[347425807,1735788188677,551.16090117,8.219e-05,2]
[347425808,1735788188699,184.76909883,8.219e-05,2]
[347425810,1735788279981,-600.57,0.00012,6]
[347425815,1735788567185,-615.23090117,9.806e-05,2]
[347425816,1735788624858,-250.0,9.794e-05,2]
[347425817,1735788624882,-68.68909883,9.806e-05,2]
[347425826,1735788631964,-711.6811421,9.815e-05,2]
[347425827,1735788632132,-288.3188579,9.815e-05,2]
[347425828,1735788632142,-1029.18,9.852e-05,2]
[347425829,1735788632153,-250.0,9.918e-05,2]
[347425830,1735788632162,-250.0,9.918e-05,2]
[347425831,1735788632172,-300.0,0.00010028,2]
[347425832,1735788632188,-7805.41,0.00010029,2]
[347425833,1735788632199,-54010.0,0.000101,2]
[347425834,1735788632208,-510.36,0.000101,2]
[347425835,1735788632218,-158.29,0.00010137,2]
[347425836,1735788632229,-1123.57,0.0001014,2]
[347425837,1735788632238,-416.7,0.00010162,2]
[347425838,1735788632248,-480.816,0.0001045,2]
[347425839,1735788632258,-735.93,0.0001047,2]
[347425840,1735788632267,-500.46,0.00010549,2]
[347425841,1735788632276,-509.5,0.00010549,2]
[347425842,1735788632285,-10425.0,0.00010567,2]
[347425843,1735788632295,-436.83,0.00010578,2]
[347425845,1735788632304,-182.81,0.00010578,2]
[347425847,1735788632313,-150.0,0.00010578,2]
[347425849,1735788632323,-150.0,0.00010578,2]
[347425851,1735788632332,-182.81,0.00010578,2]
[347425853,1735788632342,-150.0,0.00010578,2]
[347425854,1735788632352,-182.81,0.00010578,2]
[347425855,1735788632361,-150.0,0.00010578,2]
[347425856,1735788632371,-182.81,0.00010578,2]
[347425857,1735788632379,-182.18,0.00010578,2]
[347425858,1735788632389,-150.0,0.00010578,2]
[347425859,1735788632398,-436.83,0.000106,2]
[347425860,1735788632408,-182.81,0.000106,2]
[347425861,1735788632417,-2078.47,0.000106,2]
[347425862,1735788632427,-436.83,0.000106,2]
[347425863,1735788632437,-150.0,0.000106,2]
[347425864,1735788632447,-182.81,0.000106,2]
[347425865,1735788632457,-150.0,0.000106,2]
[347425866,1735788632467,-436.83,0.000106,2]
[347425867,1735788632476,-182.81,0.000106,2]
[347425868,1735788632485,-150.0,0.000106,2]
[347425869,1735788632494,-436.83,0.000106,2]
[347425870,1735788632503,-182.81,0.000106,2]
[347425871,1735788632512,-500.0,0.0001063,2]
[347425872,1735788632522,-152.78,0.00010639,2]
[347425873,1735788632531,-494.86,0.00010645,2]
[347425874,1735788632540,-152.13,0.00010678,2]
[347425875,1735788632550,-150.0,0.00010678,2]
[347425876,1735788632559,-150.21,0.00010691,2]
[347425877,1735788632568,-437.58,0.000107,2]
[347425878,1735788632577,-796.99,0.000107,2]
[347425879,1735788632587,-437.58,0.000107,2]
[347425880,1735788632596,-436.35,0.000107,2]
[347425881,1735788632605,-239.39,0.00010827,2]
[347425882,1735788632615,-506.52,0.00010829,2]
[347425883,1735788632624,-152.06,0.00010849,2]